bitfinex/quotes_BTCUSD_20250922
["timestamp","ask_amount","ask_price","bid_price","bid_amount"]
[1758508503341,6.74393989,114550.0,114540.0,0.0015]
[1758508503534,2.10175899,114550.0,114540.0,0.0015]
[1758508503720,1.89656275,114550.0,114540.0,0.0015]
[1758508503993,2.27680275,114550.0,114540.0,0.0015]
[1758508504207,0.78278678,114550.0,114540.0,0.0015]
[1758508504412,1.5854407,114550.0,114540.0,0.0015]
[1758508504616,1.57936528,114550.0,114540.0,0.0015]
[1758508505032,0.3,114540.0,114530.0,0.17462066]
[1758508505243,0.302,114540.0,114530.0,0.17612066]
[1758508505453,0.642,114540.0,114530.0,0.17822066]
[1758508505656,0.642,114540.0,114530.0,0.20321066]
[1758508506071,0.34,114540.0,114530.0,0.23640256]
[1758508506274,0.72196,114540.0,114530.0,0.23490256]
[1758508506425,0.72196,114540.0,114530.0,0.23186256]
[1758508506634,0.72196,114540.0,114530.0,0.23490256]
[1758508507046,0.343,114540.0,114530.0,0.23640256]
[1758508507410,0.7212,114540.0,114530.0,0.23640256]
[1758508507610,0.7212,114540.0,114530.0,0.23840256]
[1758508508032,0.38068,114540.0,114530.0,0.23840256]
[1758508508251,0.003,114540.0,114530.0,0.23840256]
[1758508508465,0.003,114540.0,114530.0,0.32367223]
[1758508508720,0.003,114540.0,114530.0,0.37437681]
[1758508509680,0.00014136,114550.0,114540.0,0.20476338]
[1758508510110,0.00014136,114550.0,114540.0,0.23389338]
[1758508511229,0.00014136,114550.0,114540.0,0.31916305]
[1758508512077,0.00014136,114550.0,114540.0,0.33016305]
[1758508512290,0.00014136,114550.0,114540.0,0.23389338]
[1758508512493,0.30327136,114550.0,114540.0,0.18370148]
[1758508512769,0.30645136,114550.0,114540.0,0.19261148]
[1758508512930,0.30645136,114550.0,114540.0,0.17461148]
[1758508513106,0.30545136,114550.0,114540.0,0.17461148]
[1758508513316,0.30227136,114550.0,114540.0,0.20476338]
[1758508513518,0.30014136,114550.0,114540.0,0.22085338]
[1758508513782,0.30227136,114550.0,114540.0,0.21876338]
[1758508513986,0.30545136,114550.0,114540.0,0.21376338]
[1758508514211,0.30014136,114550.0,114540.0,0.21585338]
[1758508514383,0.30014136,114550.0,114540.0,0.24191338]
[1758508514616,0.00014136,114550.0,114540.0,0.28699478]
[1758508514821,0.00014136,114550.0,114540.0,0.27799478]
[1758508515007,0.00014136,114550.0,114540.0,0.27899478]
[1758508515225,0.00014136,114550.0,114540.0,0.23689338]
[1758508515579,0.00227136,114550.0,114540.0,0.20776338]
[1758508516554,0.60545136,114550.0,114540.0,0.003]
[1758508516730,0.96803136,114550.0,114540.0,0.17761148]
[1758508517296,1.32191136,114550.0,114540.0,0.17761148]
[1758508517514,1.31930136,114550.0,114540.0,0.20376148]
[1758508517695,1.01902136,114550.0,114540.0,0.23541338]
[1758508518148,1.32115136,114550.0,114540.0,0.20926338]
[1758508518350,1.34691136,114550.0,114540.0,0.20926338]
[1758508518507,1.34691136,114550.0,114540.0,0.17911148]
[1758508518707,1.34691136,114550.0,114540.0,0.17752679]
[1758508518913,1.76928528,114550.0,114540.0,0.00291531]
[1758508520648,1.34691136,114550.0,114540.0,0.00291531]
[1758508520870,1.76928528,114550.0,114540.0,0.00291531]
[1758508521082,2.24388152,114550.0,114540.0,0.00291531]
[1758508521320,7.3080765,114550.0,114540.0,0.00291531]
[1758508522364,6.9291965,114550.0,114540.0,0.0015]
[1758508522598,7.3185565,114550.0,114540.0,0.0015]
[1758508522799,7.3215565,114550.0,114540.0,0.0015]
[1758508523218,6.9451965,114550.0,114540.0,0.0015]
[1758508523471,7.3209165,114550.0,114540.0,0.0015]
[1758508523730,6.9451965,114550.0,114540.0,0.0015]
[1758508524223,4.9340965,114550.0,114540.0,0.0015]
[1758508524454,3.5523965,114550.0,114540.0,0.0015]
[1758508524685,2.2860965,114550.0,114540.0,0.0015]
[1758508524919,2.27309405,114550.0,114540.0,0.0015]
[1758508525147,2.64673405,114550.0,114540.0,0.0015]
[1758508525373,2.65573405,114550.0,114540.0,0.0015]
[1758508525621,2.28209405,114550.0,114540.0,0.0015]
[1758508525847,2.58803405,114550.0,114540.0,0.0015]
[1758508526075,1.29122389,114550.0,114540.0,0.0015]
[1758508526319,2.08763781,114550.0,114540.0,0.0015]
[1758508526809,1.70648918,114550.0,114540.0,0.0015]
[1758508527080,2.04990528,114550.0,114540.0,0.0015]
[1758508527570,0.65127136,114550.0,114540.0,0.17669148]
[1758508527811,0.68134136,114550.0,114540.0,0.20605148]
[1758508528297,1.01436136,114550.0,114540.0,0.0015]
[1758508528539,1.02036136,114550.0,114540.0,0.0015]
[1758508528783,1.02036136,114550.0,114540.0,0.17819148]
[1758508529026,0.64014136,114550.0,114540.0,0.23620338]
[1758508529274,0.71506136,114550.0,114540.0,0.23620338]
[1758508529513,1.01506136,114550.0,114540.0,0.23720338]
[1758508530212,1.01506136,114550.0,114540.0,0.23404338]
[1758508530468,1.44253528,114550.0,114540.0,0.0025]
[1758508530728,1.04430136,114550.0,114540.0,0.0025]
[1758508530969,1.46667528,114550.0,114540.0,0.0025]
[1758508531219,1.64127152,114550.0,114540.0,0.0025]
[1758508531926,1.04430136,114550.0,114540.0,0.0025]
[1758508532156,1.46667528,114550.0,114540.0,0.0025]
[1758508532390,1.37061528,114550.0,114540.0,0.0025]
[1758508532625,1.31536136,114550.0,114540.0,0.17919148]
[1758508532885,1.31844136,114550.0,114540.0,0.0025]
[1758508533087,1.72038136,114550.0,114540.0,0.0025]
[1758508533310,2.14275528,114550.0,114540.0,0.0025]
[1758508534470,1.74331528,114550.0,114540.0,0.17919148]
[1758508534683,1.68882136,114550.0,114540.0,0.20705148]
[1758508535301,1.32094136,114550.0,114540.0,0.20705148]
[1758508535750,2.11537528,114550.0,114540.0,0.0025]
[1758508536155,2.13951528,114550.0,114540.0,0.0025]
[1758508536579,2.31411152,114550.0,114540.0,0.0025]
[1758508536715,1.94715152,114550.0,114540.0,0.0025]
[1758508536900,2.31359152,114550.0,114540.0,0.0025]
[1758508537761,2.3196823,114550.0,114540.0,0.0025]
[1758508537966,1.89670838,114550.0,114540.0,0.0025]
[1758508538183,2.32720276,114550.0,114540.0,0.0025]
[1758508538598,1.96136276,114550.0,114540.0,0.0025]
[1758508538801,2.32696276,114550.0,114540.0,0.0025]
[1758508539546,7.37696276,114550.0,114540.0,0.0025]
[1758508541023,7.00016276,114550.0,114540.0,0.0025]
[1758508541584,6.99788276,114550.0,114540.0,0.0025]
[1758508542399,6.63456276,114550.0,114540.0,0.0025]
[1758508542599,6.56074276,114550.0,114540.0,0.0025]
[1758508543464,7.39715398,114550.0,114540.0,0.0025]
[1758508544008,7.719502,114550.0,114540.0,0.0025]
[1758508544681,7.716502,114550.0,114540.0,0.0025]
[1758508544901,7.732502,114550.0,114540.0,0.0025]
[1758508545106,7.782502,114550.0,114540.0,0.0015]
[1758508545310,7.786502,114550.0,114540.0,0.0015]
[1758508545515,0.3,114490.0,114480.0,0.00316]
[1758508545724,0.72237392,114490.0,114470.0,0.28014776]
[1758508545939,0.3,114490.0,114480.0,0.204643]
[1758508546113,0.66104,114490.0,114480.0,0.204643]
[1758508546345,0.3,114490.0,114480.0,0.204643]
[1758508546525,0.66096,114490.0,114480.0,0.204643]
[1758508546758,0.3,114490.0,114480.0,0.20478438]
[1758508546933,1.53465392,114500.0,114490.0,0.17468774]
[1758508546934,0.81228,114500.0,114490.0,0.17468774]
[1758508547193,0.81228,114500.0,114490.0,0.20462774]
[1758508547731,1.17236,114500.0,114490.0,0.20462774]
[1758508547934,0.81228,114500.0,114490.0,0.20462774]
[1758508548141,0.43444,114500.0,114490.0,0.20462774]
[1758508548354,0.69976,114500.0,114490.0,0.23477964]
[1758508548555,0.3,114510.0,114500.0,0.17467248]
[1758508548740,0.99956,114510.0,114500.0,0.20461248]
[1758508550814,0.64,114510.0,114500.0,0.20461248]
[1758508551013,0.99984,114510.0,114500.0,0.20461248]
[1758508551420,0.99984,114510.0,114500.0,0.00308]
[1758508551421,1.34564395,114510.0,114500.0,0.00308]
[1758508551668,1.34564395,114510.0,114500.0,0.002]
[1758508551871,1.64872395,114510.0,114500.0,0.002]
[1758508551998,1.67286395,114510.0,114500.0,0.002]
[1758508552613,1.85360808,114510.0,114500.0,0.0025]
[1758508552809,1.86172393,114510.0,114500.0,0.0025]
[1758508554870,7.27173042,114510.0,114500.0,0.0025]
[1758508555286,7.32091694,114510.0,114500.0,0.0025]
[1758508555903,7.31771694,114510.0,114500.0,0.0025]
[1758508556293,7.31751694,114510.0,114500.0,0.0015]
[1758508556527,6.96207694,114510.0,114500.0,0.0015]
[1758508556931,7.31595694,114510.0,114500.0,0.0015]
[1758508557179,6.96107694,114510.0,114500.0,0.0015]
[1758508557364,7.32695694,114510.0,114500.0,0.0015]
[1758508557813,7.63614314,114510.0,114500.0,0.0015]
[1758508558016,7.28126314,114510.0,114500.0,0.0015]
[1758508558242,7.25835192,114510.0,114500.0,0.0015]
[1758508558663,7.61223192,114510.0,114500.0,0.0015]
[1758508558872,7.25835192,114510.0,114500.0,0.0015]
[1758508559080,5.33176797,114510.0,114500.0,0.0015]
[1758508559286,4.38161442,114510.0,114500.0,0.0015]
[1758508559719,4.02805442,114510.0,114500.0,0.0015]
[1758508559942,3.68427047,114510.0,114500.0,0.0015]
[1758508560152,4.38117442,114510.0,114500.0,0.0015]
[1758508560355,4.38109442,114510.0,114500.0,0.0015]
[1758508560558,4.37809442,114510.0,114500.0,0.0015]
[1758508560779,4.37793442,114510.0,114500.0,0.0015]
[1758508560978,4.81993442,114510.0,114500.0,0.0015]
[1758508561386,4.46405442,114510.0,114500.0,0.0015]
[1758508561591,4.59253442,114510.0,114500.0,0.0015]
[1758508561772,4.59363442,114510.0,114500.0,0.0015]
[1758508562041,4.24127651,114510.0,114500.0,0.0015]
[1758508562246,1.97852636,114510.0,114500.0,0.02711]
[1758508562459,2.14745308,114510.0,114500.0,0.02711]
[1758508562666,2.14543308,114510.0,114500.0,0.02711]
[1758508562875,2.32207031,114510.0,114500.0,0.02711]
[1758508563082,1.87207031,114510.0,114500.0,0.02711]
[1758508563293,1.87207031,114510.0,114500.0,0.00351]
[1758508563519,1.87907031,114510.0,114500.0,0.00351]
[1758508563743,1.34241308,114510.0,114500.0,0.00351]
[1758508563951,1.52887031,114510.0,114500.0,0.00351]
[1758508564209,1.87683031,114510.0,114500.0,0.0015]
[1758508564409,1.67095778,114510.0,114500.0,0.00351]
[1758508564661,1.66995778,114510.0,114500.0,0.03029]
[1758508565088,1.84955501,114510.0,114500.0,0.0015]
[1758508565299,6.92235501,114510.0,114500.0,0.0015]
[1758508565717,1.32013778,114510.0,114500.0,0.00351]
[1758508565967,1.99651778,114510.0,114500.0,0.0015]
[1758508566182,0.97437383,114510.0,114500.0,0.00351]
[1758508566391,1.66883778,114510.0,114500.0,0.03029]
[1758508566592,1.66883778,114510.0,114500.0,0.02711]
[1758508567001,1.84547501,114510.0,114500.0,0.0015]
[1758508567209,1.87123501,114510.0,114500.0,0.0015]
[1758508568032,1.82055501,114510.0,114500.0,0.0015]
[1758508568235,7.06493501,114510.0,114500.0,0.0015]
[1758508568879,6.72115106,114510.0,114500.0,0.0015]
[1758508569082,7.06493501,114510.0,114500.0,0.0015]
[1758508569284,2.02945778,114510.0,114500.0,0.0015]
[1758508569421,1.79365469,114510.0,114500.0,0.0015]
[1758508569626,0.97440498,114510.0,114500.0,0.02643]
[1758508569836,1.32703498,114510.0,114500.0,0.02643]
[1758508570414,1.67081893,114510.0,114500.0,0.02643]
[1758508570819,1.67081893,114510.0,114500.0,0.02436]
[1758508570820,1.84547616,114510.0,114500.0,0.02436]
[1758508570986,1.50485221,114510.0,114500.0,0.0015]
[1758508571196,1.87341616,114510.0,114500.0,0.0015]
[1758508571396,1.52963221,114510.0,114500.0,0.0015]
[1758508571737,1.87341616,114510.0,114500.0,0.0015]
[1758508571883,6.92341616,114510.0,114500.0,0.0015]
[1758508572335,7.22341616,114510.0,114500.0,0.0015]
[1758508572789,7.56720011,114510.0,114500.0,0.0015]
[1758508572985,7.22341616,114510.0,114500.0,0.0015]
[1758508573340,7.59347558,114510.0,114500.0,0.0015]
[1758508573495,7.24969163,114510.0,114500.0,0.0015]
[1758508573886,7.59347558,114510.0,114500.0,0.0015]
[1758508574445,7.24969163,114510.0,114500.0,0.0015]
[1758508575025,7.59347558,114510.0,114500.0,0.0015]
[1758508575202,7.9225775,114510.0,114500.0,0.0015]
[1758508575968,7.93627517,114510.0,114500.0,0.0015]
[1758508576288,7.93227517,114510.0,114500.0,0.0015]
[1758508576993,7.22175605,114510.0,114500.0,0.0015]
[1758508577239,7.23975605,114510.0,114500.0,0.0015]
[1758508577608,6.88915605,114510.0,114500.0,0.0015]
[1758508577819,7.23975605,114510.0,114500.0,0.0015]
[1758508578018,6.88915605,114510.0,114500.0,0.0015]
[1758508578216,5.81941605,114510.0,114500.0,0.0015]
[1758508578399,6.55681605,114510.0,114500.0,0.0015]
[1758508578821,6.20625605,114510.0,114500.0,0.0015]
[1758508579226,6.25681605,114510.0,114500.0,0.0015]
[1758508579432,6.93971605,114510.0,114500.0,0.0015]
[1758508579932,6.92171605,114510.0,114500.0,0.0015]
[1758508580112,6.93371605,114510.0,114500.0,0.0015]
[1758508580522,1.72992605,114510.0,114500.0,0.00357]
[1758508580721,2.06674838,114510.0,114500.0,0.02945]
[1758508580923,2.16122838,114510.0,114500.0,0.02643]
[1758508581137,2.16321838,114510.0,114500.0,0.0015]
[1758508581337,2.16321838,114510.0,114500.0,0.00357]
[1758508581567,2.16637838,114510.0,114500.0,0.0015]
[1758508581791,2.18815838,114510.0,114500.0,0.0015]
[1758508582859,2.17915838,114510.0,114500.0,0.0015]
[1758508583296,7.00445838,114510.0,114500.0,0.0015]
[1758508583503,7.3253696,114510.0,114500.0,0.0015]
[1758508584121,7.3373696,114510.0,114500.0,0.0015]
[1758508584703,1.41468774,114490.0,114480.0,0.02300138]
[1758508584939,1.27040498,114490.0,114480.0,0.02602138]
[1758508585140,1.62084498,114490.0,114480.0,0.02809138]
[1758508585538,1.27040498,114490.0,114480.0,0.02809138]
[1758508585737,1.99884498,114490.0,114480.0,0.02809138]
[1758508585940,2.17353272,114490.0,114480.0,0.02809138]
[1758508586146,1.82313272,114490.0,114480.0,0.02809138]
[1758508586400,2.18227751,114490.0,114480.0,0.02809138]
[1758508586950,2.18231516,114490.0,114480.0,0.02809138]
[1758508587392,2.18231516,114490.0,114480.0,0.02859138]
[1758508587563,2.00762742,114490.0,114480.0,0.02859138]
[1758508587770,2.00758742,114490.0,114480.0,0.02859138]
[1758508588168,2.03386371,114490.0,114480.0,0.02859138]
[1758508588789,2.03386391,114490.0,114480.0,0.02859138]
[1758508590153,2.20855165,114490.0,114480.0,0.02557138]
[1758508590354,2.21060165,114490.0,114480.0,0.00271138]
[1758508591133,2.21060165,114490.0,114480.0,0.02603138]
[1758508591341,2.01763244,114490.0,114480.0,0.02926138]
[1758508591540,1.66727244,114490.0,114480.0,0.02926138]
[1758508591753,2.01751244,114490.0,114480.0,0.02926138]
[1758508591926,1.66727244,114490.0,114480.0,0.20396438]
[1758508592124,2.01751244,114490.0,114480.0,0.02926138]
[1758508593263,2.01751244,114490.0,114480.0,0.20396438]
[1758508593407,2.01751244,114490.0,114480.0,0.02926138]
[1758508595065,2.19425018,114490.0,114480.0,0.02603138]
[1758508595269,2.19425018,114490.0,114480.0,0.00064138]
[1758508595475,2.28873018,114490.0,114480.0,0.00164138]
[1758508595889,2.31616018,114490.0,114480.0,0.00164138]
[1758508596293,2.33244176,114490.0,114480.0,0.00164138]
[1758508597344,7.40535298,114490.0,114480.0,0.00164138]
[1758508597554,7.40935298,114490.0,114480.0,0.00164138]
[1758508597780,7.41035298,114490.0,114480.0,0.00164138]
[1758508597989,7.71660708,114490.0,114480.0,0.00014138]
[1758508599243,7.69369586,114490.0,114480.0,0.00014138]
[1758508600255,7.71660708,114490.0,114480.0,0.00014138]
[1758508600463,7.81045997,114490.0,114480.0,0.00164138]
[1758508601096,1.41474879,114450.0,114440.0,99.83434498]
[1758508601297,1.41474879,114450.0,114440.0,99.85863629]
[1758508601298,1.37335526,114450.0,114440.0,99.85863629]
[1758508601682,1.89794405,114450.0,114440.0,99.85863629]
[1758508601928,1.37335526,114450.0,114440.0,99.86186629]
[1758508602125,1.35707368,114450.0,114440.0,100.03663035]
[1758508602327,1.69873567,114450.0,114440.0,99.86186629]
[1758508602575,1.87348446,114450.0,114440.0,99.85863629]
[1758508603186,1.52368446,114450.0,114440.0,99.86186629]
[1758508603394,1.87344446,114450.0,114440.0,99.85863629]
[1758508603574,1.87344446,114450.0,114440.0,99.83531629]
[1758508603811,1.87658446,114450.0,114440.0,99.83531629]
[1758508604028,1.87658446,114450.0,114440.0,99.83831629]
[1758508604533,1.87344446,114450.0,114440.0,99.83831629]
[1758508605258,1.54803349,114450.0,114440.0,99.83831629]
[1758508605471,1.4229647,114450.0,114440.0,99.86486629]
[1758508605680,1.39254232,114450.0,114440.0,99.86486629]
[1758508605885,1.39250232,114450.0,114440.0,99.86486629]
[1758508606308,0.74286232,114450.0,114440.0,99.86486629]
[1758508606516,0.74286232,114450.0,114440.0,99.86586629]
[1758508606892,1.09246232,114450.0,114440.0,99.86586629]
[1758508607256,0.74286232,114450.0,114440.0,100.04063035]
[1758508607436,1.09242232,114450.0,114440.0,100.04063035]
[1758508608108,1.09238232,114450.0,114440.0,100.04063035]
[1758508608442,0.74286232,114450.0,114440.0,100.03913035]
[1758508608646,0.39448,114450.0,114440.0,100.04063035]
[1758508608814,0.09448,114450.0,114440.0,100.04063035]
[1758508609206,0.44396,114450.0,114440.0,100.04063035]
[1758508609411,0.78396,114450.0,114440.0,100.04063035]
[1758508609619,0.43448,114450.0,114440.0,100.04063035]
[1758508609818,1.08396,114450.0,114440.0,100.04063035]
[1758508610051,0.74396,114450.0,114440.0,100.04063035]
[1758508610285,0.78396,114450.0,114440.0,100.04063035]
[1758508610646,0.43448,114450.0,114440.0,100.04063035]
[1758508610821,0.78392,114450.0,114440.0,100.04063035]
[1758508611238,0.78392,114450.0,114440.0,100.07078225]
[1758508612488,1.08392,114450.0,114440.0,100.04063035]
[1758508612691,1.09230232,114450.0,114440.0,100.04063035]
[1758508613480,1.09230232,114450.0,114440.0,100.08872775]
[1758508613683,0.3,114470.0,114460.0,0.17473353]
[1758508613962,0.3,114470.0,114460.0,0.2120102]
[1758508613963,0.64924,114470.0,114460.0,0.2120102]
[1758508614376,0.98924,114470.0,114460.0,0.2120102]
[1758508614582,0.68924,114470.0,114460.0,0.2120102]
[1758508615248,0.68916,114470.0,114460.0,0.2200102]
[1758508615591,0.34,114470.0,114460.0,0.2200102]
[1758508615811,0.68912,114470.0,114460.0,0.2501621]
[1758508616029,0.78130479,114490.0,114480.0,0.174703]
[1758508616245,1.13042479,114490.0,114480.0,0.204743]
[1758508616436,1.43042479,114490.0,114480.0,0.204743]
[1758508616677,1.08130479,114490.0,114480.0,0.204743]
[1758508616884,0.78130479,114490.0,114480.0,0.204743]
[1758508617103,0.6,114510.0,114500.0,0.17467248]
[1758508617311,0.98916345,114510.0,114500.0,0.20070248]
[1758508617529,1.28916345,114510.0,114500.0,0.20070248]
[1758508618183,1.29416345,114510.0,114500.0,0.20070248]
[1758508618608,1.30296753,114510.0,114500.0,0.20383248]
[1758508618819,0.95392753,114510.0,114500.0,0.20383248]
[1758508619054,0.96292753,114510.0,114500.0,0.20383248]
[1758508619267,1.00292753,114510.0,114500.0,0.20383248]
[1758508619689,0.65392753,114510.0,114500.0,0.20383248]
[1758508619891,0.70380753,114510.0,114500.0,0.20533248]
[1758508620521,0.34896345,114510.0,114500.0,0.24333323]
[1758508620731,0.00012345,114510.0,114500.0,0.27348513]
[1758508621371,0.00112345,114510.0,114500.0,0.27348513]
[1758508621808,0.00012345,114510.0,114500.0,0.27348513]
[1758508622020,0.00012345,114510.0,114500.0,0.23548438]
[1758508622231,0.00012345,114510.0,114500.0,0.23498438]
[1758508622664,0.00012345,114510.0,114500.0,0.58366438]
[1758508622898,0.00012345,114510.0,114500.0,0.58362438]
[1758508623097,0.00012345,114510.0,114500.0,0.59462438]
[1758508623380,0.00012345,114510.0,114500.0,0.23998438]
[1758508623587,0.00012345,114510.0,114500.0,0.58362438]
[1758508623792,0.00012345,114510.0,114500.0,0.31081432]
[1758508624003,0.00012345,114510.0,114500.0,0.32381432]
[1758508624218,0.37216283,114560.0,114550.0,0.17459624]
[1758508624423,0.73094562,114560.0,114550.0,0.17559624]
[1758508624629,0.75387562,114560.0,114550.0,0.17559624]
[1758508624836,0.75387562,114560.0,114550.0,0.001]
[1758508625040,1.56845662,114560.0,114550.0,0.001]
[1758508625248,1.40282177,114560.0,114550.0,0.001]
[1758508625518,1.33388894,114560.0,114550.0,0.001]
[1758508625749,1.50846994,114560.0,114550.0,0.001]
[1758508626192,1.53238116,114560.0,114550.0,0.001]
[1758508626614,1.53638116,114560.0,114550.0,0.001]
[1758508626831,1.33888894,114560.0,114550.0,0.001]
[1758508627029,0.99032894,114560.0,114550.0,0.001]
[1758508627226,1.33868894,114560.0,114550.0,0.0005]
[1758508627432,1.33868894,114560.0,114540.0,0.17461114]
[1758508628041,0.34828,114550.0,114540.0,0.17461114]
[1758508628258,0.35636928,114550.0,114540.0,0.17461114]
[1758508628461,0.35837928,114550.0,114540.0,0.20064114]
[1758508629319,0.3,114540.0,114530.0,0.21113709]
[1758508629552,0.64205,114540.0,114530.0,0.18335709]
[1758508629775,0.64505,114540.0,114530.0,0.18335709]
[1758508630018,0.64,114540.0,114530.0,0.227537]
[1758508630247,0.68816,114540.0,114530.0,0.255357]
[1758508630488,0.68812,114540.0,114530.0,0.2855089]
[1758508630692,0.68812,114540.0,114530.0,0.24342899]
[1758508631316,0.34,114540.0,114530.0,0.24342899]
[1758508631519,0.68808,114540.0,114530.0,0.24342899]
[1758508631938,0.34,114540.0,114530.0,0.24342899]
[1758508632149,0.688,114540.0,114530.0,0.24342899]
[1758508632354,0.69606592,114540.0,114530.0,0.24342899]
[1758508632529,0.69606592,114540.0,114530.0,0.24542899]
[1758508632733,0.69606592,114540.0,114530.0,0.25242899]
[1758508632988,0.98796,114550.0,114540.0,0.17461148]
[1758508633184,0.65602542,114550.0,114540.0,0.20686338]
[1758508633393,0.65598542,114550.0,114540.0,0.23468338]
[1758508633597,0.65803542,114550.0,114540.0,0.23151338]
[1758508633816,0.95803542,114550.0,114540.0,0.23151338]
[1758508634038,0.95803542,114550.0,114540.0,0.20476338]
[1758508634456,0.95803542,114550.0,114540.0,0.20876338]
[1758508634669,0.95598542,114550.0,114540.0,0.21086338]
[1758508634875,0.95803542,114550.0,114540.0,0.23551338]
[1758508635297,0.96103542,114550.0,114540.0,0.18061148]
[1758508635704,0.95803542,114550.0,114540.0,0.18271148]
[1758508635912,0.96103542,114550.0,114540.0,0.18061148]
[1758508636742,0.98448542,114550.0,114540.0,0.18061148]
[1758508637148,1.47563166,114550.0,114540.0,0.006]
[1758508637355,1.52129315,114550.0,114540.0,0.006]
[1758508637550,1.53498331,114550.0,114540.0,0.006]
[1758508637709,1.18706331,114550.0,114540.0,0.006]
[1758508637914,1.53466331,114550.0,114540.0,0.006]
[1758508638749,1.53462331,114550.0,114540.0,0.004]
[1758508638956,1.53458331,114550.0,114540.0,0.004]
[1758508639171,1.53558331,114550.0,114540.0,0.004]
[1758508639574,0.94,114530.0,114520.0,0.18337348]
[1758508639799,1.31169888,114530.0,114520.0,0.21329348]
[1758508639928,1.29759542,114530.0,114520.0,0.21012348]
[1758508640292,1.31376756,114530.0,114520.0,0.20802348]
[1758508640534,1.32283548,114530.0,114510.0,0.20803924]
[1758508640732,0.003,114520.0,114510.0,0.18338924]
[1758508640934,0.03656542,114520.0,114510.0,0.18338924]
[1758508641141,0.01011542,114520.0,114510.0,0.18338924]
[1758508641698,0.01011542,114520.0,114510.0,0.18339009]
[1758508641931,0.3,114510.0,114490.0,0.21115819]
[1758508642160,0.34732,114500.0,114490.0,0.20972898]
[1758508642379,0.35538542,114500.0,114490.0,0.23647898]
[1758508642597,0.00806542,114500.0,114490.0,0.23964898]
[1758508642815,0.35534542,114500.0,114490.0,0.21338164]
[1758508643032,0.00806542,114500.0,114490.0,0.21338164]
[1758508643261,0.95530542,114510.0,114500.0,0.17467248]
[1758508643490,0.34806542,114510.0,114500.0,0.23474438]
[1758508643725,0.69526542,114510.0,114500.0,0.23474438]
[1758508644632,0.69526542,114510.0,114500.0,0.24174438]
[1758508644955,0.99731542,114510.0,114500.0,0.23857438]
[1758508645210,1.003402,114510.0,114500.0,0.24357438]
[1758508645447,0.654152,114510.0,114500.0,0.24357438]
[1758508645744,1.003322,114510.0,114500.0,0.24357438]
[1758508645964,1.003322,114510.0,114500.0,0.20642248]
[1758508646215,1.003322,114510.0,114500.0,0.19177248]
[1758508646452,1.003322,114510.0,114500.0,0.21642248]
[1758508646692,1.02257411,114510.0,114500.0,0.18967248]
[1758508646919,1.04602411,114510.0,114500.0,0.17967248]
[1758508647325,1.04602411,114510.0,114500.0,0.18167248]
[1758508647562,1.04602411,114510.0,114500.0,0.18467248]
[1758508648359,1.04602411,114510.0,114500.0,0.18167248]
[1758508648615,1.04602411,114510.0,114500.0,0.18367248]
[1758508649140,0.67245411,114510.0,114500.0,0.18577248]
[1758508649382,1.01929411,114510.0,114500.0,0.20281248]
[1758508649627,1.01929411,114510.0,114500.0,0.20581248]
[1758508649882,1.01929411,114510.0,114500.0,0.20371248]
[1758508650172,1.04670411,114510.0,114500.0,0.005]
[1758508651183,1.22136134,114510.0,114500.0,0.005]
[1758508651669,1.04670411,114510.0,114500.0,0.005]
[1758508652127,1.04670411,114510.0,114500.0,0.17967248]
[1758508652128,1.04666411,114510.0,114500.0,0.17967248]
[1758508652428,1.04666411,114510.0,114500.0,0.005]
[1758508652674,1.22132134,114510.0,114500.0,0.005]
[1758508653167,1.21325592,114510.0,114500.0,0.005]
[1758508653420,1.22137378,114510.0,114500.0,0.005]
[1758508654655,1.52137378,114510.0,114500.0,0.005]
[1758508655156,1.52136997,114510.0,114500.0,0.005]
[1758508655722,6.57136997,114510.0,114500.0,0.005]
[1758508655910,6.59428119,114510.0,114500.0,0.005]
[1758508656128,6.22456997,114510.0,114500.0,0.005]
[1758508656346,6.57092997,114510.0,114500.0,0.005]
[1758508656556,0.81467248,114500.0,114490.0,0.00012345]
[1758508656764,0.84512522,114500.0,114490.0,0.00012345]
[1758508656978,0.84708522,114500.0,114490.0,0.00012345]
[1758508657198,0.87449522,114500.0,114490.0,0.00012345]
[1758508658715,1.22081522,114500.0,114490.0,0.00012345]
[1758508660392,0.87449522,114500.0,114490.0,0.00012345]
[1758508660603,1.22069522,114500.0,114490.0,0.00012345]
[1758508661048,0.87449522,114500.0,114490.0,0.00012345]
[1758508661469,1.22049522,114500.0,114490.0,0.00012345]
[1758508662439,0.87449522,114500.0,114490.0,0.00012345]
[1758508662667,1.22049522,114500.0,114490.0,0.00012345]
[1758508662877,0.87449522,114500.0,114490.0,0.00012345]
[1758508663233,1.22037522,114500.0,114490.0,0.00012345]
[1758508663467,1.22033522,114500.0,114490.0,0.00012345]
[1758508663972,1.22029522,114500.0,114490.0,0.00012345]
[1758508664492,0.85026522,114500.0,114490.0,0.00012345]
[1758508664691,1.19088522,114500.0,114490.0,0.02626345]
[1758508664896,0.84512522,114500.0,114490.0,0.02626345]
[1758508665330,0.84708522,114500.0,114490.0,0.02626345]
[1758508665511,0.67045274,114500.0,114490.0,0.02937345]
[1758508665682,0.69988924,114500.0,114490.0,0.02937345]
[1758508665897,0.35420924,114500.0,114490.0,0.20406119]
[1758508666130,0.69984924,114500.0,114490.0,0.20406119]
[1758508666806,0.35420924,114500.0,114490.0,0.20406119]
[1758508667127,0.70176924,114500.0,114490.0,0.00222345]
[1758508667305,0.87644172,114500.0,114490.0,0.00212345]
[1758508667532,0.90385172,114500.0,114490.0,0.00212345]
[1758508667876,0.70176686,114500.0,114490.0,0.00722345]
[1758508668076,0.35420686,114500.0,114490.0,0.00722345]
[1758508668453,0.99964686,114500.0,114490.0,0.20606119]
[1758508668655,0.65420686,114500.0,114490.0,0.20606119]
[1758508668856,0.99964686,114500.0,114490.0,0.02937345]
[1758508669128,0.99964686,114500.0,114490.0,0.22152996]
[1758508669373,0.99964686,114500.0,114490.0,0.20406119]
[1758508670009,0.99960686,114500.0,114490.0,0.20406119]
[1758508670141,0.99960686,114500.0,114490.0,0.20606119]
[1758508670345,0.35420686,114500.0,114490.0,0.20606119]
[1758508670551,0.69944686,114500.0,114490.0,0.20606119]
[1758508670745,0.69944686,114500.0,114490.0,0.20906119]
[1758508672278,0.87925934,114500.0,114490.0,0.00512345]
[1758508672489,0.90348934,114500.0,114490.0,0.00512345]
[1758508672696,0.69944686,114500.0,114490.0,0.00722345]
[1758508672900,0.69944686,114500.0,114490.0,0.20595119]
[1758508673139,0.35420686,114500.0,114490.0,0.20906119]
[1758508673580,0.69920686,114500.0,114490.0,0.20906119]
[1758508673711,0.34811793,114500.0,114490.0,0.20906119]